bitfinex-derivatives/quotes_BNBF0:USTF0_20250316
["timestamp","ask_amount","ask_price","bid_price","bid_amount"]
[1742113423056,2.50245531,608.15,606.87,1.785]
[1742113425761,4.02103765,608.15,606.87,1.785]
[1742113425961,2.50245531,608.11,606.87,1.785]
[1742113426662,4.02103765,608.11,606.87,1.785]
[1742113426865,3.58305553,608.1,606.87,1.785]
[1742113427061,1.51858234,608.09,606.87,1.785]
[1742113427363,2.50245531,607.94,606.87,1.785]
[1742113429063,0.32885541,608.17,606.87,1.785]
[1742113429666,0.32885541,608.17,606.88,2.542]
[1742113430163,0.32885541,608.17,606.89,2.132]
[1742113439870,2.50245531,607.95,606.89,2.132]
[1742113442171,2.50245531,607.93,606.9,1.663]
[1742113444067,2.50245531,607.94,606.9,1.663]
[1742113444671,6.08639083,607.94,606.9,1.663]
[1742113444869,3.58393552,607.93,606.9,1.663]
[1742113445067,3.58393552,607.92,606.9,1.663]
[1742113445266,3.58393552,607.91,606.9,1.663]
[1742113445572,3.58393552,607.9,606.9,1.663]
[1742113445773,3.58393552,607.89,606.9,1.663]
[1742113445972,3.58393552,607.88,606.9,1.663]
[1742113446274,3.58393552,607.87,606.9,1.663]
[1742113446477,3.58393552,607.86,606.9,1.663]
[1742113446669,3.58393552,607.85,606.9,1.663]
[1742113446873,3.58393552,607.84,606.9,1.663]
[1742113447072,2.50245531,607.9,606.9,1.663]
[1742113448069,2.50245531,607.86,606.9,1.663]
[1742113449776,2.50245531,607.9,606.9,1.663]
[1742113450475,2.50245531,607.9,606.9,3.313]
[1742113451370,2.50245531,607.9,606.9,3.64254358]
[1742113452876,2.50245531,607.87,606.9,3.64254358]
[1742113453375,2.50245531,607.87,606.91,0.32953815]
[1742113455776,2.50245531,608.08,606.91,0.32953815]
[1742113457276,2.50245531,608.08,606.92,1.16076508]
[1742113457476,2.50245531,608.08,606.93,0.32952729]
[1742113457677,5.12104128,608.09,606.93,0.32952729]
[1742113457878,3.59689584,608.08,606.93,0.32952729]
[1742113458075,3.59689584,608.07,606.93,0.32952729]
[1742113458278,3.59689584,608.06,606.93,0.32952729]
[1742113458477,3.59689584,608.05,606.93,0.32952729]
[1742113458673,3.59689584,608.04,606.93,0.32952729]
[1742113458874,3.59689584,608.03,606.93,0.32952729]
[1742113459076,3.59689584,608.02,606.93,0.32952729]
[1742113459279,2.50245531,608.12,606.93,0.32952729]
[1742113460180,5.12217489,608.13,606.93,0.32952729]
[1742113460374,1.52447858,608.12,606.93,0.32952729]
[1742113461781,5.12217489,608.12,606.93,0.32952729]
[1742113462082,5.12217489,608.11,606.93,0.32952729]
[1742113462279,1.52447858,608.1,606.93,0.32952729]
[1742113462477,1.52447858,608.15,606.93,0.32952729]
[1742113463779,5.12217489,608.15,606.93,0.32952729]
[1742113463982,5.12217489,608.14,606.93,0.32952729]
[1742113464181,5.12217489,608.13,606.93,0.32952729]
[1742113464479,5.12217489,608.12,606.93,0.32952729]
[1742113464679,5.12217489,608.11,606.93,0.32952729]
[1742113464884,5.12217489,608.1,606.93,0.32952729]
[1742113465082,5.12217489,608.09,606.93,0.32952729]
[1742113465280,5.12217489,608.08,606.93,0.32952729]
[1742113465484,5.12217489,608.07,606.93,0.32952729]
[1742113465687,5.12217489,608.06,606.93,0.32952729]
[1742113465986,0.32885541,608.17,606.93,0.32952729]
[1742113465987,5.12217489,608.05,606.93,0.32952729]
[1742113466186,0.32885541,608.17,606.93,0.32952729]
[1742113466187,5.12217489,608.04,606.93,0.32952729]
[1742113466382,5.12217489,608.03,606.93,0.32952729]
[1742113466584,3.59769631,608.13,606.93,0.32952729]
[1742113466886,5.12347292,608.12,606.93,0.32952729]
[1742113467085,5.12347292,608.11,606.93,0.32952729]
[1742113467286,5.12347292,608.1,606.93,0.32952729]
[1742113467485,2.50245531,608.14,606.93,0.32952729]
[1742113467486,5.12347292,608.09,606.93,0.32952729]
[1742113467688,5.12347292,608.08,606.93,0.32952729]
[1742113467888,5.12347292,608.07,606.93,0.32952729]
[1742113468089,5.12347292,608.06,606.93,0.32952729]
[1742113468290,5.12347292,608.05,606.93,0.32952729]
[1742113468490,1.52577661,608.04,606.93,0.32952729]
[1742113468690,3.59769631,608.11,606.93,0.32952729]
[1742113468691,1.52577661,608.1,606.93,0.32952729]
[1742113470391,1.52577661,608.1,606.93,1.98252729]
[1742113471787,2.50245531,608.0,606.93,1.98252729]
[1742113472898,2.50245531,608.0,606.93,3.77852729]
[1742113473805,3.59769631,608.02,606.93,3.77852729]
[1742113474005,3.59769631,608.01,606.93,3.77852729]
[1742113474203,3.59769631,608.0,606.93,3.77852729]
[1742113474503,2.50245531,608.15,606.93,3.77852729]
[1742113474901,7.62770404,608.15,606.93,3.77852729]
[1742113475105,5.12524873,608.14,606.93,3.77852729]
[1742113475303,1.52533247,608.13,606.93,3.77852729]
[1742113475607,3.59991626,608.14,606.94,1.1622412]
[1742113475801,2.50245531,608.15,606.94,1.1622412]
[1742113475802,3.59991626,608.13,606.95,0.32951643]
[1742113476004,3.59991626,608.12,606.95,0.32951643]
[1742113476203,3.59991626,608.11,606.95,0.32951643]
[1742113476405,3.59991626,608.1,606.95,0.32951643]
[1742113476607,3.59991626,608.09,606.96,1.965]
[1742113476904,3.59991626,608.08,606.96,2.294511]
[1742113477105,2.83131072,608.17,606.96,2.294511]
[1742113477406,5.12373788,608.16,606.96,2.294511]
[1742113477701,3.59887465,608.15,606.96,2.294511]
[1742113477906,3.59887465,608.14,606.96,2.294511]
[1742113478206,3.59887465,608.13,606.96,2.294511]
[1742113478406,3.59887465,608.12,606.96,2.294511]
[1742113478705,0.32885541,608.17,606.97,0.32950557]
[1742113478706,3.59887465,608.11,606.97,0.32950557]
[1742113478905,3.59887465,608.1,606.97,0.32950557]
[1742113479105,0.32885541,608.17,606.97,0.32950557]
[1742113479903,0.32885541,608.17,606.98,2.628]
[1742113480400,0.32885541,608.17,606.99,0.32949471]
[1742113481600,1.8529717,608.17,606.99,0.32949471]
[1742113481807,0.32885541,608.17,606.99,0.32949471]
[1742113483510,2.50245531,608.13,606.99,0.32949471]
[1742113484809,2.50245531,608.13,607.0,1.15977861]
[1742113485108,2.50245531,608.13,607.01,0.32948386]
[1742113485809,3.59471966,608.16,607.01,0.32948386]
[1742113486008,3.59471966,608.15,607.01,0.32948386]
[1742113486308,3.59471966,608.14,607.01,0.32948386]
[1742113486504,0.32885541,608.17,607.01,0.32948386]
[1742113489807,0.32885541,608.17,607.02,2.504]
[1742113490008,0.32885541,608.17,607.03,0.329473]
[1742113494014,0.32885541,608.17,607.03,2.160473]
[1742113496112,1.52197004,609.11,607.03,2.160473]
[1742113496715,0.32840183,609.01,607.03,2.160473]
[1742113497015,0.32840183,609.01,607.04,1.15859456]
[1742113497319,0.32840183,609.01,607.05,0.32946215]
[1742113497517,0.32840183,609.01,607.05,1.48805671]
[1742113498215,0.32840183,609.01,607.06,1.15859456]
[1742113498415,0.32840183,609.01,607.07,0.32945129]
[1742113498813,2.50245531,608.73,607.07,0.32945129]
[1742113499116,0.32856368,608.71,607.07,0.32945129]
[1742113499518,1.85053372,608.71,607.07,0.32945129]
[1742113500520,5.44286808,608.71,607.07,0.32945129]
[1742113500714,5.1143044,608.7,607.07,0.32945129]
[1742113500916,5.44287887,608.69,607.07,0.32945129]
[1742113501121,1.85054991,608.68,607.07,0.32945129]
[1742113501318,0.32858527,608.67,607.07,0.32945129]
[1742113504523,3.92091963,608.67,607.07,0.32945129]
[1742113504724,5.1143044,608.66,607.07,0.32945129]
[1742113504924,0.32860147,608.64,607.07,0.32945129]
[1742113505118,5.44290587,608.64,607.07,0.32945129]
[1742113505317,5.1143044,608.63,607.07,0.32945129]
[1742113505523,0.32861766,608.61,607.07,0.32945129]
[1742113505724,1.8505877,608.61,607.07,0.32945129]
[1742113506025,0.32861766,608.61,607.07,0.32945129]
[1742113507420,0.32861766,608.61,607.08,2.646]
[1742113510228,0.32861766,608.61,607.08,2.97544587]
[1742113510428,2.50245531,608.36,607.08,2.97544587]
[1742113511930,2.50245531,608.36,607.09,2.382]
[1742113512328,2.50245531,608.15,607.09,2.382]
[1742113514131,2.50245531,608.14,607.09,2.382]
[1742113516331,2.50245531,608.04,607.09,2.382]
[1742113520731,2.50245531,608.04,607.1,1.906]
[1742113520934,4.02632425,608.04,607.1,1.906]
[1742113521138,2.50245531,608.04,607.1,1.906]
[1742113521834,2.50245531,607.95,607.1,1.906]
[1742113523440,2.50245531,607.95,607.11,2.72]
[1742113523938,2.50245531,608.12,607.11,2.72]
[1742113524536,6.09929605,608.12,607.11,2.72]
[1742113524732,3.59684074,608.11,607.11,2.72]
[1742113524938,3.59684074,608.1,607.11,2.72]
[1742113525140,3.59684074,608.09,607.11,2.72]
[1742113525331,3.59684074,608.08,607.11,2.72]
[1742113525533,3.59684074,608.07,607.11,2.72]
[1742113525738,2.50245531,608.1,607.11,2.72]
[1742113528141,0.32868247,608.49,607.11,2.72]
[1742113536942,0.32868247,608.49,607.12,2.218]
[1742113539644,0.32868247,608.49,607.13,1.98]
[1742113545753,0.32868247,608.49,607.13,2.30941874]
[1742113547455,0.32868247,608.49,607.14,2.543]
[1742113548161,2.50245531,608.47,607.14,2.543]
[1742113548553,7.63249913,608.47,607.14,2.543]
[1742113548750,5.13004382,608.46,607.14,2.543]
[1742113548956,1.52683072,608.45,607.14,2.543]
[1742113550556,5.13004382,608.45,607.14,2.543]
[1742113550758,5.13004382,608.44,607.14,2.543]
[1742113550957,5.13004382,608.43,607.14,2.543]
[1742113551158,5.13004382,608.42,607.14,2.543]
[1742113551361,5.13004382,608.41,607.14,2.543]
[1742113551560,3.6032131,608.4,607.14,2.543]
[1742113551760,3.6032131,608.39,607.14,2.543]
[1742113551956,3.6032131,608.38,607.14,2.543]
[1742113552162,3.6032131,608.37,607.14,2.543]
[1742113552362,3.6032131,608.36,607.14,2.543]
[1742113552561,3.6032131,608.35,607.14,2.543]
[1742113552861,3.6032131,608.34,607.14,2.543]
[1742113553061,3.6032131,608.33,607.14,2.543]
[1742113553361,3.6032131,608.32,607.14,2.543]
[1742113553563,2.50245531,608.48,607.14,2.543]
[1742113553762,2.50245531,608.47,607.14,2.543]
[1742113554061,7.62907498,608.47,607.14,2.543]
[1742113554257,5.12661967,608.46,607.14,2.543]
[1742113554458,1.52559131,608.45,607.14,2.543]
[1742113555665,1.52559131,608.45,607.15,2.34]
[1742113556465,5.12661967,608.45,607.15,2.34]
[1742113556661,1.52559131,608.44,607.15,2.34]
[1742113557164,1.52559131,608.44,607.16,0.32940246]
[1742113559268,2.50245531,608.43,607.16,0.32940246]
[1742113559768,7.62907498,608.43,607.16,0.32940246]
[1742113559960,5.12661967,608.42,607.16,0.32940246]
[1742113560168,1.52559131,608.41,607.16,3.00740246]
[1742113562666,1.52559131,608.41,607.16,4.77540246]
[1742113562866,5.12661967,608.41,607.16,4.77540246]
[1742113563064,5.12661967,608.4,607.16,4.77540246]
[1742113563268,5.12661967,608.39,607.16,4.77540246]
[1742113563463,5.12661967,608.38,607.16,4.77540246]
[1742113563668,5.12661967,608.37,607.16,4.77540246]
[1742113563869,5.12661967,608.36,607.16,4.77540246]
[1742113564066,3.60102836,608.35,607.16,4.77540246]
[1742113564372,3.60102836,608.34,607.16,4.77540246]
[1742113564570,3.60102836,608.33,607.16,4.77540246]
[1742113564772,3.60102836,608.32,607.16,4.77540246]
[1742113564964,3.60102836,608.31,607.16,4.77540246]
[1742113565170,3.60102836,608.3,607.16,4.77540246]
[1742113565369,3.60102836,608.29,607.16,4.77540246]
[1742113565571,3.60102836,608.28,607.16,4.77540246]
[1742113565872,3.60102836,608.27,607.16,4.77540246]
[1742113566068,2.50245531,608.45,607.16,4.77540246]
[1742113566765,7.62688524,608.45,607.16,4.77540246]
[1742113566970,5.12442993,608.44,607.16,4.77540246]
[1742113567169,1.5248757,608.43,607.16,4.77540246]
[1742113568475,4.02733101,608.43,607.16,4.77540246]
[1742113568668,3.59955423,608.42,607.16,4.77540246]
[1742113568868,1.5248757,608.41,607.16,4.77540246]
[1742113570074,1.5248757,608.41,607.16,6.80340246]
[1742113570975,2.50245531,608.26,607.16,6.80340246]
[1742113573074,2.50245531,608.22,607.16,6.80340246]
[1742113575078,2.50245531,608.39,607.16,6.80340246]
[1742113577378,3.5997215,608.44,607.16,6.80340246]
[1742113577585,3.5997215,608.43,607.16,6.80340246]
[1742113577783,3.5997215,608.42,607.16,6.80340246]
[1742113577984,3.5997215,608.41,607.16,6.80340246]
[1742113578186,3.5997215,608.4,607.16,6.80340246]
[1742113578384,3.92845259,608.4,607.16,6.80340246]
[1742113579086,1.52526308,608.39,607.16,6.80340246]
[1742113579588,0.3287419,608.38,607.16,6.80340246]
[1742113581186,2.50245531,608.36,607.16,6.80340246]
[1742113581385,2.83120802,608.36,607.16,6.80340246]
[1742113581590,5.12498458,608.35,607.16,6.80340246]
[1742113581881,1.52526308,608.34,607.16,6.80340246]
[1742113583087,2.50245531,608.24,607.16,6.80340246]
[1742113585289,4.02771839,608.24,607.16,6.80340246]
[1742113585490,6.10217681,608.23,607.16,6.80340246]
[1742113585684,1.52526308,608.22,607.16,6.80340246]
[1742113585886,5.12498458,608.22,607.16,6.80340246]
[1742113586083,3.5997215,608.22,607.16,6.80340246]
[1742113586288,3.5997215,608.21,607.16,6.80340246]
[1742113586489,3.5997215,608.2,607.16,6.80340246]
[1742113586789,3.5997215,608.19,607.16,6.80340246]
[1742113586989,3.5997215,608.18,607.16,6.80340246]
[1742113587189,3.5997215,608.17,607.16,6.80340246]
[1742113587390,3.5997215,608.16,607.16,6.80340246]
[1742113587591,2.50245531,608.23,607.16,6.80340246]
[1742113587792,2.50245531,608.29,607.16,6.80340246]
[1742113589195,7.62693693,608.29,607.16,6.80340246]
[1742113589395,5.12448162,608.28,607.16,6.80340246]
[1742113589595,1.52506643,608.27,607.16,6.80340246]
[1742113589990,5.12448162,608.27,607.16,6.80340246]
[1742113590196,3.59941519,608.26,607.16,6.80340246]
[1742113590395,3.59941519,608.25,607.16,6.80340246]
[1742113590696,2.50245531,608.34,607.16,6.80340246]
[1742113590697,5.12457527,608.24,607.16,6.80340246]
[1742113590896,3.59941519,608.33,607.16,6.80340246]
[1742113591096,5.12457527,608.32,607.16,6.80340246]
[1742113591290,2.50245531,608.34,607.16,6.80340246]
[1742113591291,5.12457527,608.31,607.16,6.80340246]
[1742113591497,5.12457527,608.3,607.16,6.80340246]
[1742113591696,5.12457527,608.29,607.16,6.80340246]
[1742113591897,5.12457527,608.28,607.16,6.80340246]
[1742113592097,5.12457527,608.27,607.16,6.80340246]
[1742113592398,5.12457527,608.26,607.16,6.80340246]
[1742113592592,5.12457527,608.25,607.16,6.80340246]
[1742113592792,5.12457527,608.24,607.16,6.80340246]
[1742113592994,5.12457527,608.23,607.16,6.80340246]
[1742113593191,5.12457527,608.22,607.16,6.80340246]
[1742113593500,5.12457527,608.21,607.16,8.91240246]
[1742113593697,5.12457527,608.2,607.16,8.91240246]
[1742113593893,5.12457527,608.19,607.16,8.91240246]
[1742113594094,3.59941519,608.18,607.16,8.91240246]
[1742113594296,3.59941519,608.17,607.16,8.91240246]
[1742113594499,2.50245531,608.3,607.16,8.91240246]
[1742113594896,2.50245531,608.24,607.16,8.91240246]
[1742113597103,6.1020375,608.35,607.16,8.91240246]
[1742113597300,1.52520345,608.34,607.16,8.91240246]
[1742113597497,5.12478564,608.34,607.16,8.91240246]
[1742113597802,1.52520345,608.33,607.16,8.91240246]
[1742113597997,2.50245531,608.35,607.16,8.91240246]
[1742113599004,6.10160763,608.35,607.16,8.91240246]
[1742113599405,1.52468452,608.34,607.16,8.91240246]
[1742113600005,0.32875271,608.36,607.16,8.91240246]
[1742113601007,2.50245531,608.32,607.16,8.91240246]
[1742113603006,0.32875271,608.36,607.16,8.91240246]
[1742113620819,2.83120802,608.36,607.16,8.91240246]
[1742113621018,3.59917956,608.35,607.16,8.91240246]
[1742113622418,3.59917956,608.34,607.16,8.91240246]
[1742113622615,3.59917956,608.33,607.16,8.91240246]
[1742113622815,3.59917956,608.32,607.16,8.91240246]
[1742113623013,3.59917956,608.31,607.16,8.91240246]
[1742113623318,0.32875271,608.36,607.16,8.91240246]
[1742113623319,3.59917956,608.3,607.16,8.91240246]
[1742113623513,3.59917956,608.29,607.16,8.91240246]
[1742113623716,3.59917956,608.28,607.16,8.91240246]
[1742113623913,3.59917956,608.27,607.16,8.91240246]
[1742113624219,3.60110474,608.26,607.16,8.91240246]
[1742113624514,0.32875271,608.36,607.16,8.91240246]
[1742113628221,3.92993902,608.36,607.16,8.91240246]
[1742113628420,3.60118631,608.35,607.16,8.91240246]
[1742113628620,3.60118631,608.34,607.16,8.91240246]
[1742113628820,3.60118631,608.33,607.16,8.91240246]
[1742113629015,3.60118631,608.32,607.16,8.91240246]
[1742113629216,3.60118631,608.31,607.16,8.91240246]
[1742113629416,3.60118631,608.3,607.16,8.91240246]
[1742113629620,0.32875271,608.36,607.16,8.91240246]
[1742113632922,2.50245531,608.31,607.16,8.91240246]
[1742113634020,7.62977791,608.31,607.16,8.91240246]
[1742113634220,5.1273226,608.3,607.16,8.91240246]
[1742113634424,1.52613629,608.29,607.16,8.91240246]
[1742113635627,4.0285916,608.29,607.16,8.91240246]
[1742113635828,3.60118631,608.28,607.16,8.91240246]
[1742113636028,1.52613629,608.27,607.16,8.91240246]
[1742113636331,3.60118631,608.28,607.16,8.91240246]
[1742113636526,3.60118631,608.27,607.16,8.91240246]
[1742113636722,3.60118631,608.26,607.16,8.91240246]
[1742113636921,2.50245531,608.29,607.16,8.91240246]
[1742113637521,2.50245531,608.34,607.16,8.91240246]
[1742113640434,3.60161271,608.35,607.16,8.91240246]
[1742113640628,0.32875271,608.36,607.16,8.91240246]
[1742113648239,2.50245531,608.2,607.16,8.91240246]
[1742113650332,2.50245531,608.18,607.16,8.91240246]
[1742113651939,2.50245531,608.09,607.16,8.91240246]
[1742113654241,2.50245531,608.07,607.16,8.91240246]
[1742113656443,0.32875271,608.36,607.16,8.91240246]
[1742113662647,1.8553397,608.36,607.16,8.91240246]
[1742113662850,0.32875271,608.36,607.16,8.91240246]
[1742113663050,2.50245531,608.26,607.16,8.91240246]
[1742113664551,2.50245531,608.24,607.16,8.91240246]
[1742113665658,7.63119031,608.24,607.16,8.91240246]
[1742113665859,5.128735,608.23,607.16,8.91240246]
[1742113666160,3.60214801,608.23,607.16,8.91240246]
[1742113666460,3.60214801,608.22,607.16,8.91240246]
[1742113666654,2.50245531,608.24,607.16,8.91240246]
[1742113667555,2.50245531,608.25,607.16,8.91240246]
[1742113668964,6.10401882,608.25,607.16,8.91240246]
[1742113669167,3.60156351,608.24,607.16,8.91240246]
[1742113669357,3.60156351,608.23,607.16,8.91240246]
[1742113669562,3.60156351,608.22,607.16,8.91240246]
[1742113669763,3.60156351,608.21,607.16,8.91240246]
[1742113669962,3.60156351,608.2,607.16,8.91240246]
[1742113670164,0.32881757,608.24,607.16,8.91240246]
[1742113672866,2.50245531,608.18,607.16,8.91240246]
[1742113674266,7.62869628,608.18,607.16,8.91240246]
[1742113674461,5.12624097,608.17,607.16,8.91240246]
[1742113674663,1.5256956,608.16,607.16,8.91240246]
[1742113674865,4.02815091,608.16,607.16,8.91240246]
[1742113675164,3.60054537,608.15,607.16,8.91240246]
[1742113675359,3.60054537,608.14,607.16,8.91240246]
[1742113675562,3.60054537,608.13,607.16,8.91240246]
[1742113675769,3.60054537,608.12,607.16,8.91240246]
[1742113675962,5.12592125,608.11,607.16,8.91240246]
[1742113676161,5.12592125,608.1,607.16,8.91240246]
[1742113676362,5.12602164,608.09,607.16,8.91240246]
[1742113676567,5.12602164,608.08,607.16,8.91240246]
[1742113676765,5.12602164,608.07,607.16,8.91240246]
[1742113676965,5.12602164,608.06,607.16,8.91240246]
[1742113677165,0.32881757,608.24,607.16,8.91240246]
[1742113677166,5.12602164,608.05,607.16,8.91240246]
[1742113677367,1.52547627,608.04,607.16,8.91240246]
[1742113677669,1.52547627,608.21,607.16,8.91240246]
[1742113678870,2.50245531,607.98,607.16,8.91240246]
[1742113681470,2.50245531,608.06,607.16,8.91240246]
[1742113681862,7.62847695,608.06,607.16,8.91240246]
[1742113682062,5.12602164,608.05,607.16,8.91240246]
[1742113682267,1.52547627,608.04,607.16,8.91240246]
[1742113683063,2.50245531,608.01,607.16,8.91240246]
[1742113684267,2.50245531,608.09,607.16,8.91240246]
[1742113686568,7.62928617,608.09,607.16,8.91240246]
[1742113686768,3.60054537,608.08,607.16,8.91240246]
[1742113686973,2.50245531,608.07,607.16,8.91240246]
[1742113688877,1.52626554,608.14,607.16,8.91240246]
[1742113689071,5.12681091,608.14,607.16,8.91240246]
[1742113689270,1.52626554,608.13,607.16,8.91240246]
[1742113691078,2.50245531,608.08,607.16,8.91240246]
[1742113693580,2.50245531,608.1,607.16,8.91240246]
[1742113694978,4.02896952,608.1,607.16,8.91240246]
[1742113695273,2.50245531,608.04,607.16,8.91240246]
[1742113698079,3.60236816,608.23,607.16,8.91240246]
[1742113698275,3.60236816,608.22,607.16,8.91240246]
[1742113698473,3.60236816,608.21,607.16,8.91240246]
[1742113698678,0.32881757,608.24,607.16,8.91240246]
[1742113698679,3.60236816,608.2,607.16,8.91240246]
[1742113698880,3.60236816,608.19,607.16,8.91240246]
[1742113699080,3.60236816,608.18,607.16,8.91240246]
[1742113699282,3.60236816,608.17,607.16,8.91240246]
[1742113699482,3.60236816,608.16,607.16,8.91240246]
[1742113699786,2.83127288,608.24,607.16,8.91240246]
[1742113699981,3.60269018,608.23,607.16,8.91240246]
[1742113700379,2.83127288,608.24,607.16,8.91240246]
[1742113701480,0.32881757,608.24,607.16,8.91240246]
[1742113713388,2.50245531,608.18,607.16,8.91240246]
[1742113715693,2.50245531,608.21,607.16,8.91240246]
[1742113717999,6.10531768,608.23,607.16,8.91240246]
[1742113718200,0.32882838,608.22,607.16,8.91240246]
[1742113718404,3.93169075,608.22,607.16,8.91240246]
[1742113719404,1.52833614,608.21,607.16,8.91240246]
[1742113719803,1.85716993,608.21,607.16,8.91240246]
[1742113720004,0.32883919,608.2,607.16,8.583]
[1742113720801,1.85717533,608.2,607.16,8.583]
[1742113720997,0.32883919,608.2,607.16,8.583]
[1742113722499,2.50245531,608.19,607.16,8.583]
[1742113722702,0.32885001,608.18,607.16,8.583]
[1742113722899,5.46004852,608.18,607.16,8.583]
[1742113723107,1.52833614,608.17,607.16,8.583]
[1742113723301,1.85719155,608.17,607.16,8.583]
[1742113725103,5.46005392,608.17,607.16,8.583]
[1742113725302,1.85719696,608.16,607.16,8.583]
[1742113725500,0.32886623,608.15,607.16,8.583]
[1742113726405,2.50245531,608.14,607.16,8.583]
[1742113726803,4.03079145,608.14,607.16,8.583]
[1742113727000,3.60286237,608.13,607.16,8.583]
[1742113727200,1.52833614,608.12,607.16,8.583]
[1742113728202,2.50245531,608.09,607.16,8.583]
[1742113729206,7.63365382,608.09,607.16,8.583]
[1742113729407,5.13119851,608.08,607.16,8.583]
[1742113729603,1.52833614,608.07,607.16,8.583]
[1742113730408,3.60286237,608.08,607.16,8.583]
[1742113730603,3.60286237,608.07,607.16,8.583]
[1742113730907,5.13038139,608.06,607.16,8.583]
[1742113731111,5.13038139,608.05,607.16,8.583]
[1742113731302,5.13038139,608.04,607.16,8.583]
[1742113731502,5.13038139,608.03,607.16,8.583]
[1742113731706,5.13038139,608.02,607.16,8.583]
[1742113731906,5.13038139,608.01,607.16,8.583]
[1742113732107,5.13038139,608.0,607.16,8.583]
[1742113732407,5.13038139,607.99,607.16,8.583]
[1742113732707,5.13038139,607.98,607.16,8.583]
[1742113732902,1.52751902,607.97,607.16,8.583]
[1742113733108,2.50245531,607.88,607.16,8.583]
[1742113734910,2.50245531,607.9,607.16,8.583]
[1742113736711,2.50245531,607.88,607.16,8.583]
[1742113737309,4.02997433,607.88,607.16,8.583]
[1742113737510,3.60286237,607.87,607.16,8.583]
[1742113737913,3.60286237,607.86,607.16,8.583]
[1742113738113,3.60286237,607.85,607.16,8.583]
[1742113738317,3.60286237,607.84,607.16,8.583]
[1742113738509,3.60286237,607.83,607.16,8.583]
[1742113738710,3.60286237,607.82,607.16,8.583]
[1742113738911,2.50245531,607.88,607.16,8.583]
[1742113740918,2.50245531,607.9,607.16,8.583]
[1742113743019,0.32886623,608.15,607.16,8.583]
[1742113743020,2.50245531,607.87,607.16,8.583]
[1742113744719,2.50245531,607.92,607.16,8.583]
[1742113746523,2.50245531,607.9,607.16,8.583]
[1742113747922,2.50245531,607.88,607.16,8.583]
[1742113748622,6.10755411,607.88,607.16,8.583]
[1742113748814,3.6050988,607.87,607.16,8.583]
[1742113749018,3.6050988,607.86,607.16,8.583]
[1742113749221,3.6050988,607.85,607.16,8.583]
[1742113749422,3.6050988,607.84,607.16,8.583]
[1742113749620,3.6050988,607.83,607.16,8.583]
[1742113749822,3.6050988,607.82,607.16,8.583]
[1742113750026,2.50245531,607.88,607.16,8.583]
[1742113750226,2.50245531,607.86,607.16,8.583]
[1742113752124,2.50245531,607.91,607.16,8.583]
[1742113754025,6.10695162,607.91,607.16,8.583]
[1742113754228,3.60449631,607.9,607.16,8.583]
[1742113754429,3.60449631,607.89,607.16,8.583]
[1742113754631,6.10695162,607.88,607.16,8.583]
[1742113754831,3.60449631,607.87,607.16,8.583]
[1742113755027,3.60449631,607.86,607.16,8.583]
[1742113755228,3.60449631,607.85,607.16,8.583]
[1742113755429,2.50245531,607.88,607.16,8.583]
[1742113756834,2.50245531,607.91,607.16,8.583]
[1742113758536,2.50245531,607.87,607.16,8.583]
[1742113760636,2.50245531,607.88,607.16,8.583]
[1742113763139,3.60432085,607.96,607.16,8.583]
[1742113763333,3.60432085,607.95,607.16,8.583]
[1742113763539,3.60432085,607.94,607.16,8.583]
[1742113763843,3.60432085,607.93,607.16,8.583]
[1742113764139,3.60432085,607.92,607.16,8.583]
[1742113764334,2.50245531,607.97,607.16,8.583]
[1742113766839,2.50245531,607.98,607.16,8.583]
[1742113769840,5.13248339,608.04,607.16,8.583]
[1742113770040,5.13248339,608.03,607.16,8.583]
[1742113770241,5.13248339,608.02,607.16,8.583]
[1742113770434,5.13248339,608.01,607.16,8.583]
[1742113770635,5.13248339,608.0,607.16,8.583]
[1742113770837,5.13248339,607.99,607.16,8.583]
[1742113771045,5.13248339,607.98,607.16,8.583]
[1742113771243,3.6047554,607.97,607.16,8.583]
[1742113771543,2.50245531,608.06,607.16,8.583]
[1742113771943,2.50245531,607.97,607.16,8.583]
[1742113773340,3.60543893,608.06,607.16,8.583]
[1742113773545,2.50245531,608.12,607.16,8.583]
[1742113775842,2.50245531,608.27,607.16,8.583]
[1742113776439,7.63372568,608.27,607.16,8.583]
[1742113776641,5.13127037,608.26,607.16,8.583]
[1742113776840,3.60430621,608.26,607.16,8.583]
[1742113777044,3.60430621,608.25,607.16,8.583]
[1742113777244,3.60430621,608.24,607.16,8.583]
[1742113777447,3.60430621,608.23,607.16,8.583]
[1742113777744,3.60430621,608.22,607.16,8.583]
[1742113777943,3.60430621,608.21,607.16,8.583]
[1742113778141,3.60430621,608.2,607.16,8.583]